fUST/lending_fUST_20240120
["ID","MTS","AMOUNT","RATE_DAILY","PERIOD"]
[312207290,1705685450326,-262.9205855,0.00034132,2]
[312207292,1705685450335,-250.0,0.00034246,7]
[312207294,1705685450345,-308.099822,0.00034247,2]
[312207296,1705685450354,-1273.60431467,0.00034316,2]
[312207298,1705685450364,-4937.29730368,0.00034326,2]
[312207300,1705685450373,-151.32984646,0.00034361,2]
[312207302,1705685450385,-151.0,0.00034389,2]
[312207304,1705685450395,-391.0,0.00034794,15]
[312207306,1705685450404,-5000.0,0.00034862,7]
[312207308,1705685450414,-591.76162003,0.00035,2]
[312207310,1705685450424,-3119.50448181,0.00035,19]
[312207312,1705685450435,-11158.91946061,0.00035,4]
[312207314,1705685450446,-1723.0,0.00035,7]
[312207316,1705685450459,-154.93802479,0.00035,4]
[312207318,1705685450469,-154.93802479,0.00035,4]
[312207320,1705685450478,-2084.57822944,0.00035,4]
[312207322,1705685450488,-1000.0,0.00035,35]
[312207324,1705685450497,-19060.79918765,0.00035,3]
[312207326,1705685450509,-3592.36268445,0.00035,2]
[312207328,1705685450519,-2517.26786603,0.00035,21]
[312207330,1705685450528,-333.05418458,0.00035,4]
[312207332,1705685450538,-150.0,0.00035,4]
[312207334,1705685450547,-201.69748604,0.00035,2]
[312207336,1705685450557,-500.0,0.00035,3]
[312207338,1705685450567,-170.0,0.00035,2]
[312207340,1705685450576,-150.0,0.00035011,2]
[312207342,1705685450586,-150.0,0.00035011,2]
[312207344,1705685450595,-308.099822,0.00035068,2]
[312207346,1705685450604,-1206.23882079,0.00035378,2]
[312207348,1705685450613,-175.4217692,0.000355,14]
[312207350,1705685450622,-300.0,0.000355,18]
[312207351,1705685450631,-151.0,0.00035557,4]
[312207353,1705685450640,-312.337722,0.00035616,120]
[312207355,1705685450650,-201.69748604,0.000357,2]
[312207357,1705685450659,-2000.0,0.0003577,2]
[312207359,1705685450669,-533.0,0.0003587,30]
[312207361,1705685450679,-533.0,0.0003588,30]
[312207363,1705685450688,-533.0,0.0003589,30]
[312207365,1705685450699,-308.099822,0.0003589,2]
[312207367,1705685450709,-162.90283469,0.00035999,10]
[312207369,1705685450719,-1000.0,0.00036,36]
[312207371,1705685450728,-11000.0,0.00036,20]
[312207373,1705685450737,-285193.1318375,0.00036,4]
[312207375,1705685450747,-30000.0,0.00036311,5]
[312207377,1705685450759,-170.0,0.00036383,2]
[312207379,1705685450770,-300.0,0.00036394,2]
[312207381,1705685450779,-45865.13922635,0.000364,7]
[312207383,1705685450789,-201.69748604,0.000364,2]
[312207385,1705685450798,-307.896124,0.000364,2]
[312207387,1705685450807,-307.896124,0.000364,2]
[312207389,1705685450816,-151.0,0.000364,2]
[312207391,1705685450826,-261.695244,0.00036474,2]
[312207393,1705685450835,-153.428873,0.00036474,2]
[312207395,1705685450844,-308.099822,0.00036712,2]
[312207398,1705685450854,-151.0,0.00036726,4]
[312207399,1705685450864,-261.695244,0.0003693,2]
[312207401,1705685450874,-273737.99348435,0.00037,3]
[312207403,1705685450883,-1000.0,0.00037,37]
[312207405,1705685450892,-733.0,0.00037,30]
[312207408,1705685450903,-155.50743149,0.00037,4]
[312207409,1705685450912,-300.0,0.00037,19]
[312207411,1705685450921,-153.428873,0.00037082,2]
[312207413,1705685450931,-242.03698325,0.000371,5]
[312207415,1705685450940,-261.695244,0.00037386,2]
[312207417,1705685450949,-308.099822,0.00037534,2]
[312207419,1705685450959,-153.428873,0.0003769,2]
[312207421,1705685450969,-274.0,0.000378,7]
[312207423,1705685450979,-301.69598985,0.000378,5]
[312207425,1705685450988,-261.695244,0.00037842,2]
[312207427,1705685450998,-238.5,0.0003789,30]
[312207429,1705685451009,-151.0,0.00037894,4]
[312207431,1705685451022,-40000.0,0.0003799,20]
[312207433,1705685451033,-40000.0,0.0003799,10]
[312207435,1705685451042,-315.0,0.0003799,2]
[312207437,1705685451052,-315.0,0.0003799,2]
[312207439,1705685451062,-151.0,0.0003799,2]
[312207440,1705685451071,-151.0,0.0003799,2]
[312207442,1705685451081,-286.691743,0.0003799,2]
[312207444,1705685451091,-286.691743,0.0003799,2]
[312207446,1705685451100,-10000.0,0.0003799,2]
[312207448,1705685451110,-10000.0,0.0003799,2]
[312207450,1705685451120,-10000.0,0.0003799,2]
[312207452,1705685451130,-10000.0,0.0003799,2]
[312207454,1705685451139,-10000.0,0.0003799,2]
[312207456,1705685451148,-10000.0,0.0003799,2]
[312207458,1705685451158,-10000.0,0.0003799,2]
[312207460,1705685451167,-10000.0,0.0003799,2]
[312207462,1705685451177,-10000.0,0.0003799,2]
[312207464,1705685451186,-10000.0,0.0003799,2]
[312207466,1705685451196,-307.896124,0.0003799,2]
[312207468,1705685451207,-307.896124,0.0003799,2]
[312207470,1705685451216,-151.0,0.0003799,2]
[312207472,1705685451226,-154.95351395,0.00037998,4]
[312207474,1705685451235,-258.76819595,0.00037998,4]
[312207476,1705685451245,-607.87489301,0.00037999,14]
[312207478,1705685451255,-1786.1851102,0.00038,4]
[312207480,1705685451264,-2014.11,0.00038,4]
[312207482,1705685451275,-1000.0,0.00038,38]
[312207484,1705685451285,-200.836615,0.00038,9]
[312207486,1705685451295,-5000.0,0.00038117,7]
[312207488,1705685451304,-5000.0,0.00038121,7]
[312207490,1705685451315,-5000.0,0.00038121,7]
[312207492,1705685451326,-200.0,0.00038273,15]
[312207494,1705685451336,-348.0,0.00038273,15]
[312207496,1705685451347,-261.695244,0.00038298,2]
[312207498,1705685451357,-153.428873,0.00038298,2]
[312207500,1705685451366,-950.0,0.00038356,2]
[312207502,1705685451377,-308.099822,0.00038356,2]
[312207504,1705685451386,-157.937746,0.00038448,2]
[312207506,1705685451396,-154.632947,0.00038448,2]
[312207508,1705685451405,-2137.88596785,0.000385,4]
[312207510,1705685451415,-300.0,0.000385,20]
[312207512,1705685451424,-163.559528,0.00038534,2]
[312207514,1705685451434,-950.0,0.0003863,2]
[312207516,1705685451443,-950.0,0.00038904,2]
[312207518,1705685451456,-157.937746,0.00038929,2]
[312207520,1705685451466,-5000.0,0.00039,5]
[312207522,1705685451475,-5000.0,0.00039,5]
[312207524,1705685451485,-4048.251085,0.00039,5]
[312207525,1705685451495,-2273.73997091,0.00039,5]
[312207527,1705685451506,-151.0,0.00039062,4]
[312207529,1705685451516,-200.32499158,0.00039099,7]
[312207531,1705685451526,-154.4389629,0.00039132,7]
[312207533,1705685451536,-163.559528,0.00039166,2]
[312207535,1705685451546,-950.0,0.00039178,2]
[312207537,1705685451555,-308.099822,0.00039178,2]
[312207539,1705685451564,-156.15034427,0.00039181,7]
[312207541,1705685451574,-156.15034427,0.000392,7]
[312207543,1705685451583,-3499.58,0.000393,60]
[312207545,1705685451593,-154.4389629,0.00039401,7]
[312207548,1705685451602,-157.937746,0.00039409,2]
[312207549,1705685451611,-154.4389629,0.00039437,7]
[312207552,1705685451621,-159.5983,0.00039449,7]
[312207554,1705685451630,-950.0,0.00039452,2]
[312207555,1705685451639,-154.4389629,0.00039469,7]
[312207557,1705685451649,-154.4389629,0.00039484,7]
[312207559,1705685451659,-245.52812156,0.000396,30]
[312207561,1705685451668,-154.4389629,0.00039667,7]
[312207563,1705685451677,-154.12939898,0.00039674,7]
[312207572,1705685451750,-1000.0,0.00039712,10]
[312207574,1705685451760,-1000.0,0.00039712,10]
[312207576,1705685451770,-950.0,0.00039726,2]
[312207578,1705685451780,-2037.79735663,0.00039797,2]
[312207580,1705685451789,-153.428874,0.00039797,2]
[312207582,1705685451798,-163.559528,0.00039797,2]
[312207583,1705685451807,-154.12939898,0.00039851,7]
[312207585,1705685451816,-160.0,0.00039866,3]
[312207587,1705685451825,-154.4389629,0.00039887,7]
[312207589,1705685451834,-157.937746,0.0003989,2]
[312207591,1705685451843,-156.15034427,0.0003994,7]
[312207593,1705685451852,-156.15034427,0.00039955,7]
[312207595,1705685451861,-4037.37988696,0.0003999,4]
[312207598,1705685451871,-738.12683061,0.0004,2]
[312207599,1705685451881,-5000.0,0.0004,2]
[312207602,1705685451891,-719.46157424,0.0004,2]
[312207603,1705685451900,-18893.38699722,0.0004,15]
[312207606,1705685451909,-301.91589292,0.0004,2]
[312207607,1705685451919,-2716.84535538,0.0004,2]
[312207609,1705685451928,-16207.55387816,0.0004,10]
[312207611,1705685451937,-168.22710666,0.0004,2]
[312207614,1705685451946,-154.87609912,0.0004,4]
[312207615,1705685451955,-238.18227951,0.0004,4]
[312207617,1705685451965,-1279.70749005,0.0004,4]
[312207619,1705685451974,-1973.02169883,0.0004,7]
[312207621,1705685451984,-249.3420013,0.0004,2]
[312207622,1705685451992,-1000.0,0.0004,7]
[312207623,1705685452002,-192.85996915,0.0004,2]
[312207624,1705685452011,-500.0,0.0004,10]
[312207625,1705685452019,-289.99999618,0.0004,4]
[312207626,1705685452028,-1226.11785111,0.0004,7]
[312207627,1705685452037,-504.31,0.0004,7]
[312207628,1705685452046,-980.54976185,0.0004,60]
[312207629,1705685452055,-1817.14165864,0.0004,30]
[312207630,1705685452064,-333.0,0.0004,60]
[312207631,1705685452073,-31972.37287041,0.0004,4]
[312207632,1705685452082,-5000.0,0.0004,14]
[312207633,1705685452091,-515.79921932,0.0004,5]
[312207634,1705685452099,-48421.44797085,0.0004,2]
[312207635,1705685452109,-1844.44481472,0.0004,4]
[312207636,1705685452117,-1095.11434641,0.0004,2]
[312207637,1705685452126,-300.0,0.0004,21]
[312207638,1705685452135,-351.341903,0.0004,2]
[312207639,1705685452144,-2000.0,0.0004,32]
[312207640,1705685452153,-600.0,0.0004,30]
[312207641,1705685452161,-308.099822,0.0004,2]
[312207642,1705685452170,-957.12353842,0.0004,2]
[312207643,1705685452179,-3978.317225,0.0004001,32]
[312207644,1705685452188,-154.4389629,0.0004003,30]
[312207645,1705685452200,-154.4389629,0.00040114,30]
[312207646,1705685452210,-160.0,0.00040188,4]
[312207647,1705685452219,-151.0,0.0004023,21]
[312207648,1705685452228,-154.4389629,0.00040282,30]
[312207649,1705685452236,-156.15034427,0.00040351,30]
[312207651,1705685452245,-157.937746,0.0004037,2]
[312207652,1705685452254,-154.632947,0.0004037,2]
[312207654,1705685452263,-5000.0,0.00040378,4]
[312207656,1705685452273,-154.632946,0.00040398,2]
[312207658,1705685452281,-263.229578,0.00040398,2]
[312207660,1705685452290,-154.4389629,0.000404,30]
[312207662,1705685452299,-154.12939898,0.000404,30]
[312207664,1705685452309,-156.15034427,0.000404,30]
[312207666,1705685452318,-154.4389629,0.00040412,30]
[312207668,1705685452327,-160.0,0.0004051,5]
[312207670,1705685452336,-156.15034427,0.00040668,30]
[312207672,1705685452345,-154.4389629,0.00040748,30]
[312207674,1705685452354,-160.71960998,0.00040781,30]
[312207676,1705685452362,-154.4389629,0.00040786,30]
[312207678,1705685452371,-351.341903,0.00040822,2]
[312207680,1705685452381,-308.099822,0.00040822,2]
[312207681,1705685452391,-160.0,0.00040832,6]
[312207683,1705685452402,-156.15034427,0.00040835,30]
[312207685,1705685452412,-258.29129766,0.00040877,30]
[312207687,1705685452422,-1614.70869854,0.0004088,90]
[312207689,1705685452431,-263.229578,0.00040903,2]
[312207691,1705685452441,-1500.0,0.00040904,7]
[312207693,1705685452454,-200.0,0.00040963,10]
[312207695,1705685452463,-210.24551506,0.00040968,10]
[312207697,1705685452472,-533.0,0.0004097,30]
[312207699,1705685452482,-210.24551506,0.00040971,10]
[312207701,1705685452492,-200.0,0.00040974,10]
[312207703,1705685452500,-200.0,0.00040977,10]
[312207705,1705685452511,-200.0,0.00040979,10]
[312207707,1705685452520,-533.0,0.0004098,30]
[312207709,1705685452530,-210.24551506,0.00040988,10]
[312207711,1705685452540,-200.0,0.00040998,10]
[312207713,1705685452549,-210.24551506,0.00040999,10]
[312207715,1705685452558,-1000.0,0.00041,30]
[312207717,1705685452567,-50000.0,0.00041,15]
[312207719,1705685452576,-50000.0,0.00041,20]
[312207721,1705685452586,-50000.0,0.00041,25]
[312207723,1705685452595,-50000.0,0.00041,30]
[312207725,1705685452605,-54884.0,0.00041,2]
[312207727,1705685452614,-4465.02696089,0.00041,10]
[312207729,1705685452622,-315.0,0.00041,2]
[312207731,1705685452631,-315.0,0.00041,2]
[312207733,1705685452641,-151.0,0.00041,2]
[312207735,1705685452652,-151.0,0.00041,2]
[312207737,1705685452660,-286.691743,0.00041,2]
[312207739,1705685452670,-286.691743,0.00041,2]
[312207741,1705685452679,-4610.86980662,0.00041,15]
[312207743,1705685452689,-4453.60672735,0.00041,2]
[312207750,1705685452746,-5546.39327265,0.00041,2]
[312207752,1705685452756,-443.42614736,0.00041,2]
[312207754,1705685452768,-9556.57385264,0.00041,2]
[312207756,1705685452777,-2540.90195235,0.00041,2]
[312207758,1705685452789,-3309.2979256,0.00041,2]
[312207761,1705685452805,-4149.80012205,0.00041,2]
[312207763,1705685452817,-10000.0,0.00041,2]
[312207765,1705685452827,-10000.0,0.00041,2]
[312207767,1705685452836,-10000.0,0.00041,2]
[312207769,1705685452847,-10000.0,0.00041,2]
[312207771,1705685452856,-10000.0,0.00041,2]
[312207773,1705685452865,-10000.0,0.00041,2]
[312207775,1705685452875,-10000.0,0.00041,2]
[312207777,1705685452885,-307.896124,0.00041,2]
[312207779,1705685452895,-307.896124,0.00041,2]
[312207781,1705685452904,-600.0,0.00041014,30]
[312207783,1705685452913,-154.4389629,0.00041034,30]
[312207785,1705685452922,-154.632946,0.00041071,2]
[312207787,1705685452931,-500.0,0.00041095,30]
[312207789,1705685452940,-510.942033,0.00041095,30]
[312207791,1705685452949,-500.0,0.00041095,2]
[312207792,1705685452958,-168.13972448,0.000411,14]
[312207794,1705685452967,-168.13972448,0.000411,14]
[312207796,1705685452979,-168.13972448,0.000411,14]
[312207799,1705685452988,-168.13,0.000411,14]
[312207801,1705685452998,-158.24915245,0.000411,14]
[312207803,1705685453010,-158.24915245,0.000411,14]
[312207804,1705685453021,-158.24915245,0.000411,14]
[312207806,1705685453031,-158.24915245,0.000411,14]
[312207808,1705685453040,-158.24915245,0.000411,14]
[312207810,1705685453049,-158.24915245,0.000411,14]
[312207812,1705685453059,-158.24915245,0.000411,14]
[312207814,1705685453068,-158.24915245,0.000411,14]
[312207816,1705685453079,-158.24915245,0.000411,14]
[312207818,1705685453090,-158.24915245,0.000411,14]
[312207820,1705685453100,-158.24915245,0.000411,14]
[312207822,1705685453111,-158.24915245,0.000411,14]
[312207824,1705685453121,-158.24915245,0.000411,14]
[312207827,1705685453131,-158.24915245,0.000411,14]
[312207828,1705685453141,-158.24915245,0.000411,14]
[312207830,1705685453151,-158.24915245,0.000411,14]
[312207832,1705685453161,-158.24,0.000411,14]
[312207834,1705685453172,-151.09,0.000411,14]
[312207836,1705685453182,-181.72,0.000411,14]
[312207839,1705685453192,-199.55,0.000411,14]
[312207840,1705685453202,-160.0,0.00041153,7]
[312207842,1705685453212,-156.15034427,0.00041156,30]
[312207845,1705685453222,-154.4389629,0.00041281,30]
[312207846,1705685453231,-156.15034427,0.00041342,30]
[312207848,1705685453241,-253.023477,0.00041398,21]
[312207851,1705685453251,-154.4389629,0.00041401,30]
[312207852,1705685453268,-529.4626,0.00041449,30]
[312207854,1705685453278,-154.12939898,0.00041474,30]
[312207856,1705685453288,-160.0,0.00041475,8]
[312207858,1705685453298,-154.4389629,0.00041482,30]
[312207868,1705685453375,-156.15034427,0.00041486,30]
[312207870,1705685453384,-1000.0,0.000415,10]
[312207872,1705685453395,-300.0,0.000415,22]
[312207874,1705685453404,-160.71960998,0.00041516,30]
[312207876,1705685453414,-312.337722,0.00041553,120]
[312207878,1705685453423,-154.4389629,0.0004158,30]
[312207880,1705685453432,-1500.0,0.00041589,14]
[312207881,1705685453441,-4532.0,0.00041589,14]
[312207883,1705685453454,-351.341903,0.00041644,2]
[312207885,1705685453463,-202.697257,0.00041644,2]
[312207887,1705685453473,-308.099822,0.00041644,2]
[312207889,1705685453483,-154.4389629,0.00041664,30]
[312207891,1705685453493,-154.4389629,0.00041671,30]
[312207893,1705685453506,-160.0,0.00041797,9]
[312207895,1705685453515,-600.32575657,0.000418,30]
[312207897,1705685453524,-156.15034427,0.0004184,30]
[312207899,1705685453535,-154.4389629,0.00041848,30]
[312207901,1705685453545,-820.30835101,0.0004199,10]
[312207904,1705685453556,-1000.0,0.00042,14]
[312207905,1705685453565,-187.23763025,0.00042,2]
[312207908,1705685453574,-1000.0,0.00042,42]
[312207909,1705685453584,-1997.72537677,0.00042,2]
[312207911,1705685453593,-1000.0,0.00042,30]
[312207913,1705685453603,-33962.5051295,0.00042,8]
[312207915,1705685453612,-50000.0,0.00042,30]
[312207917,1705685453621,-50000.0,0.00042,25]
[312207919,1705685453630,-1860.31517186,0.00042,20]
[312207922,1705685453644,-41872.6564806,0.00042,20]
[312207926,1705685453677,-664.12,0.00030136,2]
[312207928,1705685453686,-664.12,0.0003041,2]
[312207930,1705685453695,-500.0,0.00030684,2]
[312207932,1705685453704,-500.0,0.00030958,2]
[312207934,1705685453713,-171.0,0.00038202,2]
[312207936,1705685453722,-1972.37563349,0.00042,20]
[312207938,1705685453733,-249.993024,0.00042,20]
[312207947,1705685453805,-4044.65969005,0.00042,20]
[312207949,1705685453814,-575.17221559,0.00042,40]
[312207955,1705685453862,-664.12,0.00030684,2]
[312207957,1705685453871,-664.12,0.00030958,2]
[312207959,1705685453881,-500.0,0.00031232,2]
[312207961,1705685453891,-664.12,0.00031232,2]
[312207963,1705685453901,-500.0,0.00031506,2]
[312207965,1705685453909,-81.23701657,0.00031506,2]
[312207967,1705685453921,-509.95758116,0.00031506,2]
[312208582,1705686343107,-154.84515485,0.00027395,2]
[312208583,1705686343127,-887.39138358,0.00027396,2]
[312208584,1705686430090,-2799.66,0.00027387,3]
[312208585,1705686430110,-346.02974836,0.00027396,2]
[312208586,1705686440113,-167.915799,0.00027387,3]
[312208587,1705686454093,-992.02859772,0.00027387,3]
[312208712,1705686640012,-20864.2178903,0.00027386,2]
[312208714,1705686640022,-763.6737386,0.00027387,2]
[312208716,1705686640030,-4455.09255084,0.00027387,7]
[312208718,1705686640039,-2993.28,0.00027387,3]
[312208720,1705686640048,-500.0,0.00027397,2]
[312208722,1705686640058,-500.0,0.00027397,2]
[312208724,1705686640067,-152.9019814,0.00027397,2]
[312208726,1705686640076,-501.00583222,0.00027397,2]
[312208727,1705686640085,-500.0,0.00027397,2]
[312208729,1705686640094,-1000.0,0.00027397,2]
[312208732,1705686640104,-500.0,0.00027397,2]
[312208734,1705686640113,-500.0,0.00027397,2]
[312208735,1705686640122,-500.0,0.00027397,2]
[312208737,1705686640131,-500.0,0.00027397,2]
[312208739,1705686640140,-500.0,0.00027397,2]
[312208741,1705686640148,-500.0,0.00027397,2]
[312208743,1705686640157,-500.0,0.00027397,2]
[312208745,1705686640168,-293.65379672,0.00027397,2]
[312208747,1705686640176,-500.0,0.00027397,2]
[312208749,1705686640185,-158.37445492,0.00027397,2]
[312208751,1705686640195,-500.0,0.00027397,2]
[312208754,1705686640204,-500.0,0.00027397,2]
[312208756,1705686640213,-617.40713115,0.00027397,2]
[312208757,1705686640222,-500.0,0.00027397,2]
[312208759,1705686640231,-500.0,0.00027397,2]
[312208762,1705686640240,-500.0,0.00027397,2]
[312208765,1705686640251,-500.0,0.00027397,2]
[312208766,1705686640260,-500.0,0.00027397,2]
[312208767,1705686640269,-214.51,0.00027397,2]
[312208768,1705686640277,-503.11281892,0.00027397,2]
[312208769,1705686640286,-500.56555605,0.00027397,2]
[312208770,1705686640295,-500.0,0.00027397,2]
[312208771,1705686640303,-500.0,0.00027397,2]
[312208772,1705686640312,-394.57848758,0.00027397,2]
[312208773,1705686640321,-644.18223943,0.00027397,2]
[312208774,1705686640329,-500.0,0.00027397,2]
[312208775,1705686640338,-500.0,0.00027397,2]
[312208776,1705686640346,-500.0,0.00027397,2]
[312208777,1705686640355,-500.0,0.00027397,2]
[312208778,1705686640364,-500.0,0.00027397,2]
[312208779,1705686640373,-500.0,0.00027397,2]
[312208780,1705686640382,-500.0,0.00027397,2]
[312208781,1705686640391,-505.84684229,0.00027397,2]
[312208782,1705686640399,-500.0,0.00027397,2]
[312208783,1705686640408,-500.0,0.00027397,2]
[312208784,1705686640417,-500.98296989,0.00027397,2]
[312208785,1705686640425,-503.28476532,0.00027397,2]
[312208786,1705686640434,-500.0,0.00027397,2]
[312208787,1705686640443,-557.39952533,0.00027397,2]
[312208788,1705686640452,-500.0,0.00027397,2]
[312208789,1705686640461,-500.0,0.00027397,2]
[312208790,1705686640470,-500.0,0.00027397,2]
[312208791,1705686640479,-500.0,0.00027397,2]
[312208792,1705686640488,-500.0,0.00027397,2]
[312208793,1705686640499,-500.0,0.00027397,2]
[312208794,1705686640512,-500.0,0.00027397,2]
[312208795,1705686640523,-500.0,0.00027397,2]
[312208796,1705686640534,-500.0,0.00027397,2]
[312208797,1705686640546,-500.0,0.00027397,2]
[312208798,1705686640557,-500.0,0.00027397,2]
[312208799,1705686640569,-831.14,0.00027397,2]
[312208801,1705686640579,-500.0,0.00027397,2]
[312208804,1705686640589,-500.0,0.00027397,2]
[312208807,1705686640598,-5214.37,0.00027397,2]
[312208809,1705686640610,-500.0,0.00027397,2]
[312208811,1705686640620,-500.0,0.00027397,2]
[312208813,1705686640631,-541.19860788,0.00027397,2]
[312208815,1705686640641,-500.0,0.00027397,2]
[312208817,1705686640652,-500.0,0.00027397,2]
[312208820,1705686640663,-1289.34,0.00027397,2]
[312208822,1705686640674,-500.0,0.00027397,2]
[312208824,1705686640684,-1373.52,0.00027397,2]
[312208826,1705686640694,-1661.59,0.00027397,2]
[312208829,1705686640704,-500.0,0.00027397,2]
[312208831,1705686640715,-3246.11,0.00027397,2]
[312208834,1705686640726,-500.0,0.00027397,2]
[312208836,1705686640735,-500.0,0.00027397,2]
[312208839,1705686640745,-500.0,0.00027397,2]
[312208842,1705686640756,-500.0,0.00027397,2]
[312208844,1705686640767,-533.17519764,0.00027397,2]
[312208846,1705686640778,-500.0,0.00027397,2]
[312208849,1705686640788,-500.0,0.00027397,2]
[312208851,1705686640798,-500.0,0.00027397,2]
[312208853,1705686640808,-500.0,0.00027397,2]
[312208855,1705686640818,-500.0,0.00027397,2]
[312208857,1705686640828,-500.0,0.00027397,2]
[312208859,1705686640838,-500.0,0.00027397,2]
[312208861,1705686640848,-500.0,0.00027397,2]
[312208863,1705686640859,-560.68,0.00027397,2]
[312208865,1705686640873,-500.0,0.00027397,2]
[312208866,1705686640884,-500.0,0.00027397,2]
[312208867,1705686640894,-500.30794115,0.00027397,2]
[312208868,1705686640904,-500.0,0.00027397,2]
[312208869,1705686640914,-500.0,0.00027397,2]
[312208870,1705686640923,-500.0,0.00027397,2]
[312208871,1705686640932,-500.0,0.00027397,2]
[312208872,1705686640944,-1000.0,0.00027397,2]
[312208873,1705686640955,-500.0,0.00027397,2]
[312208874,1705686640966,-500.0,0.00027397,2]
[312208875,1705686640976,-500.0,0.00027397,2]
[312208876,1705686640986,-500.0,0.00027397,2]
[312208877,1705686640998,-500.0,0.00027397,2]
[312208878,1705686641009,-500.0,0.00027397,2]
[312208879,1705686641018,-4175.26,0.00027397,2]
[312208880,1705686641029,-500.0,0.00027669,2]
[312208881,1705686641038,-500.0,0.00027671,2]
[312208882,1705686641049,-500.0,0.00027671,2]
[312208883,1705686641059,-500.0,0.00027671,2]
[312208884,1705686641070,-500.0,0.00027671,2]
[312208885,1705686641080,-500.0,0.00027671,2]
[312208886,1705686641091,-500.0,0.00027671,2]
[312208887,1705686641101,-500.90253928,0.00027671,2]
[312208889,1705686641112,-402.84,0.00027671,2]
[312208891,1705686641123,-500.0,0.00027671,2]
[312208893,1705686641134,-500.0,0.00027671,2]
[312208895,1705686641145,-831.14,0.00027671,2]
[312208897,1705686641156,-500.0,0.00027671,2]
[312208900,1705686641166,-500.0,0.00027671,2]
[312208902,1705686641177,-5214.37,0.00027671,2]
[312208904,1705686641187,-500.0,0.00027671,2]
[312208906,1705686641197,-1289.34,0.00027671,2]
[312208908,1705686641206,-500.0,0.00027671,2]
[312208910,1705686641215,-1373.52,0.00027671,2]
[312208912,1705686641224,-1661.59,0.00027671,2]
[312208914,1705686641234,-500.0,0.00027671,2]
[312208916,1705686641244,-3246.11,0.00027671,2]
[312208919,1705686641255,-500.0,0.00027671,2]
[312208921,1705686641266,-500.0,0.00027671,2]
[312208923,1705686641276,-500.0,0.00027671,2]
[312208925,1705686641287,-500.0,0.00027671,2]
[312208927,1705686641297,-500.0,0.00027671,2]
[312208929,1705686641307,-500.0,0.00027671,2]
[312208931,1705686641316,-500.0,0.00027671,2]
[312208933,1705686641326,-500.0,0.00027671,2]
[312208935,1705686641337,-560.68,0.00027671,2]
[312208937,1705686641347,-500.0,0.00027671,2]
[312208939,1705686641356,-500.0,0.00027671,2]
[312208942,1705686641366,-500.0,0.00027671,2]
[312208944,1705686641375,-500.0,0.00027671,2]
[312208946,1705686641385,-500.0,0.00027671,2]
[312208948,1705686641394,-500.0,0.00027671,2]
[312208950,1705686641404,-500.0,0.00027671,2]
[312208952,1705686641413,-4175.26,0.00027671,2]
[312208954,1705686641423,-500.0,0.00027943,2]
[312208956,1705686641433,-500.0,0.00027945,2]
[312208958,1705686641443,-385.62907832,0.00027945,2]
[312208960,1705686641452,-500.0,0.00027945,2]
[312208962,1705686641462,-500.0,0.00027945,2]
[312208964,1705686641472,-500.0,0.00027945,2]
[312208966,1705686641482,-500.0,0.00027945,2]
[312208968,1705686641491,-500.0,0.00027945,2]
[312208970,1705686641504,-831.14,0.00027945,2]
[312208972,1705686641514,-500.0,0.00027945,2]
[312208974,1705686641524,-500.0,0.00027945,2]